bitfinex/quotes_SOLUSD_20260305
["timestamp","ask_amount","ask_price","bid_price","bid_amount"]
[1772706482593,8.72817095,92.35,92.303,0.71331405]
[1772706482787,8.72817095,92.36,92.303,0.71331405]
[1772706483176,8.72817095,92.35,92.303,0.71331405]
[1772706483388,0.33571881,92.356,92.303,0.71331405]
[1772706483690,8.72817095,92.32,92.295,10.83477504]
[1772706483891,8.72817095,92.32,92.242,1.15]
[1772706483892,8.72817095,92.31,92.269,37.93256672]
[1772706484100,0.33694973,92.339,92.27,0.71331405]
[1772706484390,8.72817095,92.31,92.271,38.64505857]
[1772706484577,8.72817095,92.31,92.272,0.71331405]
[1772706484786,27.07628255,92.332,92.271,37.93174452]
[1772706484787,11.17134523,92.309,92.271,37.93174452]
[1772706484989,0.33816537,92.309,92.271,37.93174452]
[1772706485193,8.72817095,92.29,92.247,0.71331405]
[1772706485397,8.72817095,92.28,92.248,10.84034342]
[1772706485974,37.91574209,92.31,92.233,0.74502889]
[1772706485975,8.72817095,92.27,92.233,0.74502889]
[1772706486189,8.72817095,92.27,92.234,10.84198885]
[1772706486596,10.8378762,92.269,92.234,10.84198885]
[1772706486791,0.28432314,92.306,92.234,37.94696098]
[1772706487094,43.31856249,92.34,92.235,0.74502889]
[1772706487095,8.72817095,92.28,92.235,0.74502889]
[1772706487300,8.72817095,92.29,92.235,0.74502889]
[1772706487801,8.72817095,92.3,92.235,0.74502889]
[1772706488393,8.72817095,92.32,92.24,0.74502889]
[1772706488598,8.69407225,92.31,92.242,0.74502889]
[1772706488798,8.69407225,92.32,92.242,0.74502889]
[1772706489092,8.69407225,92.33,92.246,0.74502889]
[1772706489294,8.69407225,92.34,92.256,0.74502889]
[1772706489794,8.69407225,92.33,92.256,0.74502889]
[1772706489977,8.69407225,92.34,92.256,0.74502889]
[1772706490177,8.69407225,92.35,92.256,0.74502889]
[1772706490381,8.69407225,92.36,92.275,0.74502889]
[1772706490596,43.2905118,92.399,92.282,0.74502889]
[1772706490597,8.69407225,92.37,92.282,0.74502889]
[1772706490812,8.69407225,92.36,92.283,0.74502889]
[1772706491383,8.69407225,92.35,92.283,0.74502889]
[1772706491998,8.69407225,92.34,92.283,0.74502889]
[1772706492196,8.69407225,92.31,92.278,10.83681917]
[1772706492495,8.69407225,92.32,92.272,0.74502889]
[1772706493192,43.59514768,92.356,92.272,0.74502889]
[1772706493193,8.69407225,92.31,92.272,0.74502889]
[1772706493894,8.69407225,92.3,92.261,0.74502889]
[1772706494288,37.90791624,92.329,92.261,0.74502889]
[1772706494289,8.69407225,92.31,92.261,0.74502889]
[1772706494798,10.83317986,92.309,92.263,0.74502889]
[1772706495298,8.69407225,92.3,92.263,0.74502889]
[1772706495594,19.52720721,92.31,92.263,0.74502889]
[1772706495895,8.69407225,92.3,92.263,0.74502889]
[1772706496278,8.69407225,92.31,92.263,0.74502889]
[1772706496481,43.30570552,92.367,92.263,0.74502889]
[1772706496482,8.69407225,92.32,92.263,0.74502889]
[1772706496882,164.9,92.366,92.264,37.93462237]
[1772706496883,8.69407225,92.3,92.264,37.93462237]
[1772706497100,8.69407225,92.31,92.265,0.74502889]
[1772706497405,8.69407225,92.29,92.264,10.83846353]
[1772706497582,0.28432314,92.339,92.264,10.83846353]
[1772706497784,8.69407225,92.31,92.265,0.74502889]
[1772706499309,8.69407225,92.3,92.254,0.74502889]
[1772706499803,0.02154826,92.299,92.254,0.74502889]
[1772706500196,8.69407225,92.3,92.254,0.74502889]
[1772706500584,10.83317986,92.309,92.254,0.74502889]
[1772706500784,8.69407225,92.3,92.254,0.74502889]
[1772706501797,8.69407225,92.31,92.256,0.74502889]
[1772706502990,8.69407225,92.28,92.245,0.74502889]
[1772706503193,8.69407225,92.29,92.245,0.74502889]
[1772706503395,8.69407225,92.28,92.245,0.74502889]
[1772706503807,8.69407225,92.29,92.247,0.74502889]
[1772706504215,10.83552752,92.289,92.247,0.74502889]
[1772706504591,0.02745667,92.317,92.247,0.74502889]
[1772706504811,8.69407225,92.3,92.247,0.74502889]
[1772706506112,8.69407225,92.29,92.249,0.74502889]
[1772706507016,165.18432314,92.336,92.248,37.94120197]
[1772706507017,10.82933877,92.342,92.253,0.74502889]
[1772706507321,10.82933877,92.342,92.254,0.74502889]
[1772706507322,8.69407225,92.32,92.254,0.74502889]
[1772706507495,8.69407225,92.32,92.255,1.02935203]
[1772706507692,8.69407225,92.31,92.256,0.74502889]
[1772706508203,19.5271959,92.31,92.258,0.74502889]
[1772706508410,8.69407225,92.31,92.258,0.74502889]
[1772706508717,10.83317986,92.309,92.258,0.74502889]
[1772706509300,8.69407225,92.31,92.258,0.74502889]
[1772706510295,8.69407225,92.3,92.26,0.74502889]
[1772706510701,92.05310922,92.338,92.26,0.74502889]
[1772706510702,8.69407225,92.32,92.26,0.74502889]
[1772706511109,10.8649612,92.338,92.263,0.74502889]
[1772706511505,8.69407225,92.33,92.263,0.74502889]
[1772706512415,8.69407225,92.33,92.268,0.74502889]
[1772706512416,10.83083321,92.329,92.268,0.74502889]
[1772706512713,8.69407225,92.32,92.268,0.74502889]
[1772706513498,8.69407225,92.31,92.268,0.74502889]
[1772706513834,8.69407225,92.3,92.268,0.74502889]
[1772706514205,0.0383168,92.309,92.268,0.74502889]
[1772706514512,8.69407225,92.3,92.269,10.8378762]
[1772706516514,10.83329722,92.308,92.269,37.93256672]
[1772706517018,0.04133853,92.329,92.27,0.74502889]
[1772706517216,8.69407225,92.31,92.27,0.74502889]
[1772706518019,8.69407225,92.32,92.27,0.74502889]
[1772706518339,8.69407225,92.31,92.27,0.74502889]
[1772706518539,8.69407225,92.3,92.258,0.74502889]
[1772706518727,19.5284198,92.3,92.258,0.74502889]
[1772706518925,8.69407225,92.29,92.24,0.74502889]
[1772706520220,8.73929365,92.29,92.24,0.74502889]
[1772706520713,8.73929365,92.29,92.219,43.37482619]
[1772706520714,8.69407225,92.28,92.242,0.74502889]
[1772706521437,8.69407225,92.27,92.241,10.84116607]
[1772706521737,0.0461721,92.279,92.241,10.84116607]
[1772706522044,8.69407225,92.26,92.241,10.79922725]
[1772706522220,8.69407225,92.26,92.222,0.7659983]
[1772706522534,8.69407225,92.28,92.222,0.7659983]
[1772706522746,8.69407225,92.28,92.202,0.28432314]
[1772706522747,8.69407225,92.27,92.224,0.7659983]
[1772706523330,8.69407225,92.28,92.224,0.7659983]
[1772706523535,8.69407225,92.29,92.224,0.7659983]
[1772706523723,8.69407225,92.28,92.224,0.7659983]
[1772706523926,8.69407225,92.27,92.224,0.7659983]
[1772706524219,8.69407225,92.28,92.231,0.7659983]
[1772706524624,37.91366516,92.315,92.233,0.7659983]
[1772706524831,8.69407225,92.3,92.233,0.7659983]
[1772706525139,8.69407225,92.28,92.233,0.7659983]
[1772706526730,8.69407225,92.29,92.235,0.7659983]
[1772706526929,8.69407225,92.27,92.235,0.7659983]
[1772706527130,0.28432314,92.316,92.234,10.84198885]
[1772706527131,8.69407225,92.26,92.234,10.84198885]
[1772706528734,8.69407225,92.26,92.232,27.10554522]
[1772706528935,8.69407225,92.27,92.233,0.7659983]
[1772706529633,8.69407225,92.28,92.233,0.7659983]
[1772706529835,19.52957772,92.29,92.233,0.7659983]
[1772706530042,8.69407225,92.29,92.233,0.7659983]
[1772706530951,8.69407225,92.31,92.235,0.7659983]
[1772706531134,8.69407225,92.32,92.238,0.7659983]
[1772706531332,10.83200641,92.319,92.239,0.90815987]
[1772706531540,8.69407225,92.3,92.241,0.90815987]
[1772706531742,10.83200641,92.319,92.242,0.7659983]
[1772706531941,8.69407225,92.31,92.242,0.7659983]
[1772706532138,10.82966027,92.339,92.243,0.7659983]
[1772706532447,8.69407225,92.31,92.243,0.7659983]
[1772706532829,8.69407225,92.31,92.241,0.28432314]
[1772706532830,8.69407225,92.31,92.248,0.7659983]
[1772706534147,8.69407225,92.31,92.244,135.51016866]
[1772706534148,8.69407225,92.3,92.25,0.5]
[1772706534357,8.69407225,92.3,92.251,0.7659983]
[1772706535162,8.69407225,92.3,92.253,0.7659983]
[1772706535538,10.83435356,92.299,92.253,0.7659983]
[1772706536331,8.69407225,92.29,92.253,0.7659983]
[1772706536848,10.83435356,92.299,92.253,0.7659983]
[1772706537243,8.69407225,92.3,92.254,37.93873435]
[1772706537455,8.69407225,92.29,92.255,0.7659983]
[1772706537648,8.69407225,92.29,92.254,37.93873435]
[1772706538040,10.83435356,92.299,92.255,0.7659983]
[1772706538558,8.69407225,92.3,92.255,0.7659983]
[1772706538754,19.52839969,92.3,92.255,0.7659983]
[1772706539459,8.69407225,92.3,92.257,0.7659983]
[1772706539762,19.52830849,92.3,92.257,0.7659983]
[1772706539952,54.43439734,92.336,92.257,0.7659983]
[1772706539953,8.69407225,92.31,92.257,0.7659983]
[1772706540663,10.8315371,92.323,92.257,0.7659983]
[1772706540664,8.69407225,92.3,92.257,0.7659983]
[1772706540961,8.69407225,92.29,92.257,0.7659983]
[1772706541170,8.69407225,92.27,92.249,10.84022591]
[1772706541463,8.69407225,92.27,92.249,37.94079068]
[1772706541763,10.83694302,92.277,92.239,10.84140114]
[1772706541970,8.69407225,92.27,92.239,37.94490399]
[1772706542267,8.69407225,92.27,92.239,10.84140114]
[1772706542474,8.69407225,92.26,92.239,10.84140114]
[1772706542964,8.69407225,92.27,92.239,10.84140114]
[1772706543546,10.8378762,92.269,92.23,37.94860673]
[1772706544174,8.69407225,92.27,92.231,0.7659983]
[1772706544378,8.69407225,92.26,92.231,0.7659983]
[1772706544671,8.69407225,92.24,92.209,10.84492836]
[1772706545046,37.93216597,92.27,92.21,0.7659983]
[1772706545379,8.69407225,92.27,92.21,0.7659983]
[1772706545747,92.08601916,92.305,92.21,0.7659983]
[1772706545748,8.69407225,92.3,92.216,0.7659983]
[1772706545946,8.69407225,92.3,92.216,1.05032144]
[1772706546147,8.69407225,92.3,92.218,0.7659983]
[1772706546355,8.69407225,92.3,92.219,0.7659983]
[1772706546667,37.91777259,92.305,92.219,0.7659983]
[1772706546668,37.90381095,92.339,92.22,0.7659983]
[1772706546860,8.69407225,92.31,92.224,0.7659983]
[1772706547064,8.69407225,92.31,92.225,0.90815987]
[1772706547265,8.69407225,92.31,92.227,0.7659983]
[1772706547568,8.69407225,92.32,92.23,0.7659983]
[1772706547783,8.69407225,92.31,92.236,0.90815987]
[1772706548083,8.69407225,92.31,92.239,0.7659983]
[1772706548268,8.69407225,92.3,92.239,0.7659983]
[1772706548579,8.69407225,92.29,92.239,0.7659983]
[1772706549574,8.69407225,92.28,92.239,0.7659983]
[1772706549781,8.69407225,92.28,92.241,0.7659983]
[1772706550084,10.83670174,92.279,92.241,0.7659983]
[1772706550879,8.70075516,92.27,92.24,10.8412836]
[1772706551398,8.70075516,92.28,92.241,0.7659983]
[1772706551587,10.83670174,92.279,92.241,0.7659983]
[1772706551786,19.53854649,92.27,92.242,10.84104854]
[1772706551989,8.70075516,92.27,92.242,10.84104854]
[1772706552282,43.31566019,92.346,92.242,10.84104854]
[1772706552283,8.70075516,92.29,92.243,0.7659983]
[1772706555294,8.70075516,92.3,92.245,0.7659983]
[1772706556098,8.70075516,92.32,92.248,0.7659983]
[1772706557475,10.83200641,92.319,92.253,0.7659983]
[1772706558080,0.28432314,92.318,92.253,0.7659983]
[1772706558286,8.70075516,92.29,92.253,0.7659983]
[1772706559676,8.70075516,92.3,92.254,11.60563668]
[1772706559881,8.70075516,92.29,92.254,11.60563668]
[1772706560581,8.70075516,92.29,92.254,38.70473265]
[1772706560782,8.70075516,92.3,92.255,0.7659983]
[1772706562393,10.83435356,92.299,92.256,11.60540169]
[1772706563096,10.83435356,92.299,92.257,0.7659983]
[1772706563498,8.70075516,92.31,92.257,0.7659983]
[1772706563705,8.70075516,92.31,92.256,37.93791188]
[1772706563706,8.70075516,92.29,92.256,10.83940339]
[1772706563910,8.70075516,92.29,92.209,8.7949639]
[1772706563911,8.70075516,92.27,92.199,43.38418551]
[1772706564109,8.70075516,92.24,92.202,0.7659983]
[1772706564988,8.70075516,92.24,92.204,0.7659983]
[1772706565290,27.08617738,92.298,92.204,0.7659983]
[1772706565494,8.70075516,92.27,92.204,0.7659983]
[1772706565888,8.70075516,92.29,92.207,0.7659983]
[1772706566426,10.83604946,92.285,92.21,0.7659983]
[1772706566905,10.83604946,92.285,92.212,0.7659983]
[1772706567385,10.83552752,92.289,92.213,135.55572421]
[1772706567585,10.83552752,92.289,92.214,0.7659983]
[1772706567795,10.83552752,92.289,92.217,0.7659983]
[1772706568310,8.70075516,92.28,92.217,0.7659983]
[1772706568685,37.92434633,92.289,92.217,0.7659983]
[1772706569286,8.70075516,92.29,92.218,0.7659983]
[1772706569483,8.70075516,92.29,92.221,0.7659983]
[1772706569686,10.83552752,92.289,92.221,0.7659983]
[1772706571108,8.70075516,92.26,92.221,0.7659983]
[1772706571707,10.83871954,92.262,92.223,0.7659983]
[1772706572008,8.70075516,92.26,92.223,0.7659983]
[1772706574290,8.70075516,92.25,92.224,10.84316446]
[1772706574598,10.83905093,92.259,92.224,10.84316446]
[1772706574997,8.70075516,92.26,92.225,0.7659983]
[1772706575208,8.70075516,92.28,92.225,0.7659983]
[1772706575388,8.70075516,92.29,92.225,0.7659983]
[1772706575593,10.83552752,92.289,92.225,0.7659983]
[1772706576301,10.83552752,92.289,92.21,43.37909488]
[1772706576302,8.70075516,92.27,92.227,0.7659983]
[1772706576616,8.70075516,92.28,92.227,0.7659983]
[1772706577401,43.32967153,92.316,92.226,37.95025263]
[1772706577402,10.83130246,92.325,92.23,0.7659983]
[1772706577598,10.83130246,92.325,92.231,0.7659983]
[1772706577807,8.70075516,92.3,92.233,0.7659983]
[1772706578203,0.14216157,92.324,92.233,0.7659983]
[1772706578422,8.70075516,92.31,92.238,0.7659983]
[1772706579120,8.70075516,92.31,92.239,1.05032144]
[1772706579322,8.70075516,92.33,92.241,0.7659983]
[1772706579506,8.70075516,92.33,92.242,0.7659983]
[1772706579707,10.8299581,92.337,92.243,0.7659983]
[1772706579908,10.8299581,92.337,92.244,0.90815987]
[1772706580114,10.8299581,92.337,92.246,0.7659983]
[1772706580328,8.70075516,92.33,92.25,3.69383402]
[1772706580498,8.70075516,92.33,92.252,0.7659983]
[1772706580705,8.70075516,92.32,92.252,0.7659983]
[1772706581425,8.70075516,92.31,92.252,0.7659983]
[1772706582406,37.90586349,92.334,92.257,0.7659983]
[1772706582407,8.70075516,92.32,92.257,0.7659983]
[1772706583010,8.70075516,92.31,92.257,0.7659983]
[1772706584510,10.83317986,92.309,92.259,0.7659983]
[1772706585705,10.83212374,92.318,92.259,0.7659983]
[1772706586211,8.70075516,92.31,92.259,0.7659983]
[1772706586625,8.70075516,92.31,92.244,43.3629248]
[1772706586626,10.83001212,92.336,92.261,0.7659983]
[1772706586833,8.70075516,92.33,92.261,0.7659983]
[1772706587128,10.83001212,92.336,92.261,0.7659983]
[1772706587129,8.70075516,92.32,92.261,0.7659983]
[1772706587728,8.70075516,92.32,92.263,0.7659983]
[1772706588233,10.83154845,92.323,92.263,0.7659983]
[1772706588430,10.83105599,92.328,92.263,0.7659983]
[1772706588629,8.70075516,92.33,92.263,0.7659983]
[1772706588816,8.70075516,92.34,92.266,0.7659983]
[1772706589012,8.70075516,92.33,92.266,0.7659983]
[1772706589214,8.70075516,92.34,92.266,0.7659983]
[1772706589841,8.70075516,92.33,92.268,0.7659983]
[1772706590010,8.70075516,92.32,92.268,0.7659983]
[1772706590928,8.70075516,92.33,92.268,0.7659983]
[1772706591928,8.70075516,92.33,92.269,37.93256672]
[1772706592121,19.53154423,92.33,92.27,0.7659983]
[1772706593045,8.70075516,92.32,92.27,0.7659983]
[1772706593943,8.70075516,92.32,92.272,0.7659983]
[1772706594252,8.70075516,92.33,92.272,0.7659983]
[1772706594849,8.70075516,92.31,92.252,0.14216157]
[1772706595065,8.70075516,92.27,92.243,10.84093101]
[1772706595228,0.14216157,92.304,92.243,10.84093101]
[1772706595229,8.70075516,92.28,92.243,11.60692931]
[1772706595734,8.70075516,92.28,92.244,0.7659983]
[1772706596140,10.83670174,92.279,92.245,10.84069597]
[1772706597346,10.83435356,92.299,92.246,0.7659983]
[1772706597547,8.70075516,92.29,92.246,0.7659983]
[1772706597934,10.83435356,92.299,92.246,0.7659983]
[1772706598129,8.70075516,92.29,92.246,0.7659983]
[1772706599343,8.70075516,92.26,92.215,0.7659983]
[1772706600137,8.70075516,92.27,92.215,0.7659983]
[1772706600336,164.9,92.306,92.22,0.7659983]
[1772706600647,10.83200641,92.319,92.22,0.7659983]
[1772706600955,81.24004809,92.319,92.22,0.7659983]
[1772706601147,8.70075516,92.29,92.22,0.7659983]
[1772706601344,37.91202244,92.319,92.224,3.69383402]
[1772706601345,8.70075516,92.3,92.224,3.69383402]
[1772706601642,8.70075516,92.3,92.225,0.7659983]
[1772706602430,8.70075516,92.29,92.225,0.7659983]
[1772706602652,8.70075516,92.28,92.225,0.7659983]
[1772706602855,0.28432314,92.318,92.225,0.7659983]
[1772706603035,8.70075516,92.28,92.225,0.7659983]
[1772706603344,10.83435356,92.299,92.227,0.7659983]
[1772706603558,10.83385526,92.304,92.227,0.7659983]
[1772706604436,10.83385526,92.304,92.23,0.7659983]
[1772706604736,10.83317986,92.309,92.235,0.7659983]
[1772706604936,10.83200641,92.319,92.236,0.7659983]
[1772706605144,10.83200641,92.319,92.238,0.7659983]
[1772706605345,10.83200641,92.319,92.239,0.28432314]
[1772706605550,8.70075516,92.31,92.24,0.7659983]
[1772706605742,8.70075516,92.3,92.24,0.7659983]
[1772706606143,8.70075516,92.31,92.24,0.7659983]
[1772706606351,10.83200641,92.319,92.24,0.7659983]
[1772706606751,104.9,92.339,92.242,0.7659983]
[1772706607034,8.70075516,92.33,92.246,0.7659983]
[1772706607242,8.70075516,92.33,92.247,0.7659983]
[1772706607574,8.70075516,92.33,92.249,1.05032144]
[1772706607739,8.70075516,92.33,92.251,0.7659983]
[1772706607941,8.70075516,92.33,92.252,0.7659983]
[1772706608255,10.83083321,92.329,92.257,0.7659983]
[1772706609255,37.90791624,92.329,92.257,0.7659983]
[1772706609465,8.70075516,92.32,92.257,0.7659983]
[1772706609651,8.70075516,92.3,92.257,0.7659983]
[1772706610045,8.70075516,92.29,92.257,0.7659983]
[1772706610245,8.70075516,92.3,92.259,0.7659983]
[1772706610446,8.69876086,92.29,92.258,10.83916841]
[1772706610648,8.69876086,92.28,92.253,10.83974162]
[1772706610854,8.69876086,92.28,92.237,0.7659983]
[1772706610855,8.69876086,92.28,92.238,10.84151867]
[1772706611054,8.69876086,92.28,92.238,38.71131366]
[1772706611351,8.69876086,92.26,92.229,10.84257662]
[1772706611940,8.69876086,92.25,92.218,10.84386996]
[1772706612463,8.69876086,92.24,92.218,10.84386996]
[1772706612760,8.69876086,92.24,92.205,27.11333325]
[1772706612761,8.69876086,92.24,92.211,10.84457832]
[1772706613145,10.83950348,92.256,92.212,0.7659983]
[1772706613949,8.69876086,92.25,92.212,0.7659983]
[1772706614354,10.84022591,92.249,92.213,10.84445793]
[1772706614756,10.84022591,92.249,92.213,38.72160107]
[1772706615070,8.69876086,92.29,92.214,0.7659983]
[1772706615249,8.69876086,92.28,92.214,0.7659983]
[1772706615452,8.69876086,92.26,92.214,0.7659983]
[1772706616262,8.69876086,92.28,92.214,0.7659983]
[1772706616457,10.83670174,92.279,92.216,0.7659983]
[1772706616769,8.69876086,92.26,92.216,0.7659983]
[1772706618257,8.69876086,92.27,92.216,0.7659983]
[1772706618566,8.69876086,92.26,92.217,37.95395642]
[1772706618750,8.69876086,92.27,92.217,38.71995472]
[1772706618951,8.69876086,92.26,92.217,38.71995472]
[1772706619151,8.69876086,92.27,92.218,0.7659983]
[1772706619372,8.69876086,92.26,92.218,0.7659983]
[1772706619757,8.69876086,92.27,92.218,0.7659983]
[1772706619955,8.69876086,92.26,92.22,0.7659983]
[1772706620455,8.69876086,92.25,92.22,0.7659983]
[1772706620657,8.69876086,92.26,92.22,0.7659983]
[1772706621554,92.09599652,92.295,92.22,0.7659983]
[1772706621555,8.69876086,92.27,92.22,0.7659983]
[1772706622373,8.69876086,92.26,92.222,0.7659983]
[1772706622573,10.8378762,92.269,92.222,0.7659983]
[1772706624162,8.69876086,92.27,92.222,0.7659983]
[1772706624373,8.69876086,92.28,92.222,0.7659983]
[1772706624573,10.83670174,92.279,92.223,37.95148715]
[1772706624778,10.83670174,92.279,92.224,0.7659983]
[1772706625781,8.69876086,92.27,92.224,0.7659983]
[1772706626372,8.69876086,92.26,92.224,0.7659983]
[1772706626550,19.53772144,92.26,92.225,10.84304689]
[1772706626752,10.83896058,92.26,92.225,10.84304689]
[1772706626955,19.53772144,92.26,92.225,10.84304689]
[1772706627565,10.83799367,92.268,92.226,0.7659983]
[1772706629079,8.69876086,92.26,92.215,10.84422274]
[1772706629264,8.69876086,92.26,92.215,37.95477959]
[1772706629471,8.69876086,92.24,92.207,11.61112833]
[1772706629864,8.69876086,92.24,92.207,10.84513003]
[1772706630479,8.69876086,92.25,92.207,38.72403732]
[1772706630685,8.69876086,92.25,92.208,0.7659983]
[1772706631062,43.3224943,92.331,92.211,0.7659983]
[1772706631262,8.69876086,92.28,92.213,0.7659983]
[1772706631562,8.69876086,92.28,92.209,37.95724928]
[1772706631563,8.69876086,92.25,92.209,37.95724928]
[1772706631758,8.69876086,92.25,92.209,10.84492836]
[1772706632358,8.69876086,92.24,92.204,10.84551646]
[1772706632560,8.69876086,92.26,92.205,0.7659983]
[1772706632964,10.83905093,92.259,92.207,0.7659983]
[1772706633379,8.69876086,92.25,92.207,0.7659983]
[1772706633678,8.69876086,92.24,92.195,10.84657519]
[1772706633995,37.93667826,92.259,92.196,0.7659983]
[1772706634485,10.83905093,92.259,92.196,0.7659983]
[1772706635165,10.83905093,92.259,92.198,0.7659983]
[1772706635772,10.83799367,92.268,92.198,0.7659983]
[1772706637165,8.69876086,92.29,92.203,0.7659983]
[1772706637470,8.69876086,92.28,92.205,0.7659983]
[1772706638485,8.69876086,92.29,92.205,0.7659983]
[1772706639185,37.92434633,92.289,92.207,0.7659983]
[1772706639382,8.69876086,92.28,92.207,0.7659983]
[1772706639574,8.69876086,92.26,92.207,0.7659983]
[1772706639886,8.69876086,92.27,92.207,0.7659983]
[1772706640588,8.69876086,92.26,92.207,0.7659983]
[1772706640980,92.10198396,92.289,92.209,0.7659983]
[1772706641288,8.69876086,92.26,92.209,0.7659983]
[1772706641500,8.69876086,92.26,92.208,37.95766093]
[1772706641501,8.69876086,92.28,92.208,38.72365923]
[1772706641673,8.69876086,92.26,92.209,0.7659983]
[1772706641985,8.69876086,92.27,92.209,0.7659983]
[1772706642186,8.69876086,92.28,92.209,0.7659983]
[1772706643880,37.92845609,92.279,92.211,0.7659983]
[1772706644286,8.69876086,92.27,92.211,0.7659983]
[1772706644793,8.69876086,92.26,92.211,0.7659983]
[1772706645089,37.92845609,92.279,92.211,0.7659983]
[1772706645090,8.69876086,92.27,92.211,0.7659983]
[1772706645471,37.92845609,92.279,92.211,0.7659983]
[1772706645694,8.69876086,92.27,92.211,0.7659983]
[1772706646095,54.45618846,92.299,92.213,0.7659983]
[1772706646096,92.37732623,92.298,92.213,0.7659983]
[1772706646401,8.69876086,92.27,92.213,0.7659983]
[1772706647186,1e-08,92.309,92.217,0.7659983]
[1772706647385,1e-08,92.309,92.227,0.7659983]
[1772706647592,10.82951521,92.341,92.232,0.7659983]
[1772706647801,8.69876086,92.34,92.238,0.7659983]
[1772706648000,8.69876086,92.34,92.243,0.7659983]
[1772706648292,8.69876086,92.34,92.249,0.7659983]
[1772706648488,10.82966027,92.339,92.253,3.69383402]
[1772706648695,10.82905835,92.345,92.258,0.7659983]
[1772706648889,8.69876086,92.36,92.263,0.7659983]
[1772706649093,8.69876086,92.36,92.265,0.7659983]
[1772706649294,8.69876086,92.36,92.266,11.03427871]
[1772706649503,8.69876086,92.36,92.267,0.7659983]
[1772706650186,8.69876086,92.36,92.266,11.03427871]
[1772706650187,8.69876086,92.35,92.269,0.7659983]
[1772706650595,0.28432314,92.369,92.269,0.7659983]
[1772706650802,8.69876086,92.36,92.269,0.7659983]
[1772706651798,8.69876086,92.35,92.269,0.7659983]
[1772706651981,10.82848758,92.349,92.27,81.28319062]
[1772706652177,10.82848758,92.349,92.271,0.7659983]
[1772706652388,8.69876086,92.36,92.271,0.7659983]
[1772706653291,10.82626017,92.368,92.271,0.7659983]
[1772706653492,10.82497104,92.379,92.275,0.7659983]
[1772706653709,10.82497104,92.379,92.27,222.17405437]
[1772706653710,8.69876086,92.37,92.281,0.7659983]
[1772706653998,10.82614297,92.369,92.287,0.7659983]
[1772706654201,37.89150039,92.369,92.287,0.7659983]
[1772706655314,8.69876086,92.34,92.287,0.7659983]
[1772706655802,8.69876086,92.34,92.255,43.64239525]
[1772706655803,8.69876086,92.33,92.282,10.83628574]
[1772706655987,10.83083321,92.329,92.282,11.60228404]
[1772706656302,10.83083321,92.329,92.283,0.7659983]
[1772706656604,37.90791624,92.329,92.283,0.7659983]
[1772706656803,37.90791624,92.329,92.282,10.83628574]
[1772706656983,37.90791624,92.329,92.283,0.7659983]
[1772706657181,10.83083321,92.329,92.283,0.7659983]
[1772706658298,10.82966027,92.339,92.285,0.7659983]
[1772706659703,8.69876086,92.33,92.285,0.7659983]
[1772706659902,8.69876086,92.33,92.284,10.8361146]
[1772706660409,8.69876086,92.33,92.245,43.36240814]
[1772706660410,104.9,92.348,92.258,0.90815987]
[1772706660583,0.1,92.38,92.263,0.7659983]
[1772706660584,8.69876086,92.37,92.263,0.7659983]
[1772706660788,8.69876086,92.34,92.265,0.7659983]
[1772706660986,8.69876086,92.33,92.265,0.7659983]
[1772706661186,8.69876086,92.32,92.265,0.7659983]
[1772706661398,8.69876086,92.35,92.265,0.7659983]
[1772706661801,8.69876086,92.34,92.265,0.7659983]
[1772706662104,8.69876086,92.33,92.265,0.7659983]
[1772706662282,10.82848758,92.349,92.267,0.7659983]
[1772706662489,8.69876086,92.36,92.272,0.7659983]
[1772706662490,10.82769247,92.356,92.272,0.7659983]
[1772706662685,10.82769247,92.356,92.276,0.7659983]
[1772706662896,10.82614297,92.369,92.277,0.7659983]
[1772706663100,10.82614297,92.369,92.281,0.7659983]
[1772706663288,10.82614297,92.369,92.286,0.7659983]
[1772706663906,10.82614297,92.369,92.295,0.7659983]
[1772706664791,8.69876086,92.36,92.295,0.7659983]
[1772706664992,8.69876086,92.35,92.295,0.7659983]
[1772706665187,8.69876086,92.34,92.295,0.7659983]
[1772706665693,8.69876086,92.33,92.291,10.83529271]
[1772706665889,37.90791624,92.329,92.286,10.83587976]
[1772706666112,10.82966027,92.339,92.287,0.7659983]
[1772706666405,37.90381095,92.339,92.287,0.7659983]
[1772706666609,10.82848758,92.349,92.287,0.7659983]
[1772706668293,8.69876086,92.35,92.289,0.7659983]
[1772706668898,8.69876086,92.36,92.289,0.7659983]
[1772706669294,10.82626017,92.368,92.289,0.7659983]
[1772706670201,8.69876086,92.37,92.291,0.7659983]
[1772706670401,8.69876086,92.36,92.291,0.7659983]
[1772706670600,8.68504895,92.36,92.291,0.7659983]
[1772706671091,8.68504895,92.35,92.291,0.7659983]
[1772706672207,10.82848758,92.349,92.293,0.7659983]
[1772706672715,10.82731515,92.359,92.293,0.7659983]
[1772706673511,10.82614297,92.369,92.293,0.7659983]
[1772706674212,27.06405546,92.374,92.294,81.26205386]
[1772706674526,27.06405546,92.374,92.295,0.7659983]
[1772706674709,10.8252054,92.377,92.295,0.7659983]
[1772706675392,10.8252054,92.377,92.297,0.7659983]
[1772706675999,10.8252054,92.377,92.298,10.76344537]
[1772706676222,10.8252054,92.377,92.299,0.7659983]
[1772706676404,8.78504895,92.38,92.305,0.7659983]
[1772706677519,0.1,92.38,92.305,0.7659983]
[1772706678301,0.1,92.38,92.314,0.7659983]